bitfinex-derivatives/quotes_BTCF0:USTF0_20210111
["timestamp","ask_amount","ask_price","bid_price","bid_amount"]
[1610361137448,0.10546,35584.0,35553.0,0.08585]
[1610361137846,0.10546,35584.0,35554.0,0.00031702]
[1610361138845,0.10546,35584.0,35560.0,0.13632608]
[1610361139246,0.10546,35584.0,35553.0,0.08585]
[1610361140046,0.10546,35584.0,35543.0,3.161]
[1610361140446,0.10546,35584.0,35544.0,0.00031705]
[1610361140649,0.10546,35584.0,35544.0,0.10951705]
[1610361140847,0.10546,35584.0,35572.0,0.13632608]
[1610361141448,0.10546,35584.0,35572.0,0.13461738]
[1610361141648,0.10327,35600.0,35572.0,0.22703738]
[1610361141847,0.62787067,35601.0,35572.0,0.22703738]
[1610361142050,0.91838335,35607.0,35572.0,0.22703738]
[1610361142449,0.2892,35607.0,35572.0,0.22703738]
[1610361142850,0.2892,35607.0,35586.0,0.13632608]
[1610361143250,0.2892,35607.0,35586.0,0.20885608]
[1610361143451,0.2892,35607.0,35586.0,0.07253]
[1610361144851,0.13632608,35587.0,35586.0,0.07253]
[1610361145052,0.13632608,35587.0,35572.0,0.09242]
[1610361146653,0.13632608,35587.0,35564.0,0.10788]
[1610361146854,0.13632608,35565.0,35557.0,0.13632608]
[1610361147455,0.13632608,35565.0,35558.0,0.00031655]
[1610361147655,0.13632608,35565.0,35558.0,0.10714655]
[1610361148256,0.13632608,35565.0,35559.0,0.00031655]
[1610361148456,0.08495,35592.0,35559.0,0.00031655]
[1610361148859,0.13632608,35574.0,35569.0,0.13632608]
[1610361149557,0.08495,35592.0,35569.0,0.13632608]
[1610361149957,0.1085,35600.0,35569.0,0.22281608]
[1610361150161,0.63528532,35602.0,35569.0,0.22281608]
[1610361150568,0.63569289,35604.0,35570.0,0.08361648]
[1610361150761,0.63697151,35611.0,35570.0,0.08361648]
[1610361150962,0.13632608,35604.0,35600.0,0.13632608]
[1610361151162,0.6372967,35617.0,35600.0,0.13632608]
[1610361151562,0.1041,35618.0,35600.0,0.13632608]
[1610361151563,0.0003414,35616.0,35600.0,0.13632608]
[1610361151966,0.1041,35618.0,35600.0,0.13632608]
[1610361152863,0.1041,35618.0,35595.0,0.07535]
[1610361153063,0.13632608,35601.0,35592.0,0.0042]
[1610361153263,0.13632608,35601.0,35536.0,0.2702]
[1610361153464,0.13632608,35601.0,35557.0,0.287]
[1610361153664,0.13632608,35601.0,35559.0,0.0003064]
[1610361153863,0.13632608,35601.0,35559.0,0.0767464]
[1610361154065,0.13632608,35601.0,35559.0,0.07644]
[1610361154264,0.13632608,35601.0,35560.0,0.00030643]
[1610361154465,0.13632608,35601.0,35561.0,0.085]
[1610361154866,0.13632608,35571.0,35563.0,0.13632608]
[1610361155266,0.06292608,35571.0,35564.0,0.00030647]
[1610361156067,0.06292608,35571.0,35560.0,0.00030652]
[1610361156371,0.06292608,35571.0,35559.0,0.07644]
[1610361156570,0.06292608,35571.0,35561.0,0.0003066]
[1610361156972,0.13632608,35562.0,35547.0,0.13632608]
[1610361157172,0.23105608,35562.0,35547.0,0.13632608]
[1610361157370,0.23105608,35562.0,35552.0,0.00030665]
[1610361158170,0.23105608,35562.0,35547.0,0.13632608]
[1610361158971,0.13632608,35552.0,35547.0,0.13632608]
[1610361159969,0.09473,35562.0,35551.0,0.03030667]
[1610361160371,0.1498959,35578.0,35551.0,0.03030667]
[1610361160571,1.0,35580.0,35551.0,0.03030667]
[1610361160572,0.6982959,35580.0,35552.0,0.00030664]
[1610361160770,0.11118,35581.0,35553.0,0.0853]
[1610361160972,1.34168317,35598.0,35580.0,0.13632608]
[1610361160973,0.13632608,35593.0,35580.0,0.13632608]
[1610361162373,0.07326,35598.0,35575.0,0.08242]
[1610361162574,0.72648552,35598.0,35575.0,0.08242]
[1610361162778,1.02492511,35599.0,35575.0,0.08242]
[1610361162973,1.02492511,35599.0,35587.0,0.13632608]
[1610361163175,1.02492511,35599.0,35597.0,1.0]
[1610361163373,0.72662511,35599.0,35597.0,1.0]
[1610361163574,0.72662511,35599.0,35597.0,0.82922325]
[1610361163775,0.72662511,35599.0,35597.0,0.7438371]
[1610361163974,0.72662511,35599.0,35598.0,1.0]
[1610361164174,0.72799978,35600.0,35598.0,1.0]
[1610361164374,0.7284091,35599.0,35598.0,1.0]
[1610361164774,0.72805129,35600.0,35598.0,1.0]
[1610361164974,0.13632608,35599.0,35598.0,1.0]
[1610361165575,0.86467123,35599.0,35598.0,1.0]
[1610361165773,0.95543123,35599.0,35598.0,0.93]
[1610361166173,0.95543123,35599.0,35565.0,4.4244]
[1610361166374,0.95577275,35599.0,35565.0,4.4244]
[1610361166575,0.7272252,35592.0,35566.0,0.0003065]
[1610361166974,0.13632608,35567.0,35566.0,0.0003065]
[1610361169779,0.13632608,35567.0,35552.0,0.00030656]
[1610361169979,0.13632608,35567.0,35566.0,0.00030656]
[1610361170180,0.13632608,35567.0,35553.0,0.00030656]
[1610361170582,0.13632608,35567.0,35554.0,0.0835]
[1610361170781,0.13632608,35567.0,35554.0,0.08380659]
[1610361170982,0.0969,35577.0,35555.0,0.13632608]
[1610361171184,0.0969,35577.0,35555.0,0.13663267]
[1610361171383,0.0969,35577.0,35556.0,0.00030659]
[1610361171582,0.0969,35577.0,35557.0,0.0839]
[1610361172084,0.0969,35577.0,35558.0,0.00030661]
[1610361172888,0.0969,35577.0,35556.0,0.00030661]
[1610361173088,0.13632608,35557.0,35555.0,0.13632608]
[1610361173486,0.13632608,35557.0,35556.0,0.00030661]
[1610361175789,4.3481,35571.0,35556.0,0.00030661]
[1610361176992,0.13632608,35569.0,35568.0,0.13632608]
[1610361177992,0.08102608,35569.0,35568.0,0.13663259]
[1610361178195,0.08102608,35569.0,35568.0,0.13632608]
[1610361178395,0.08102608,35569.0,35568.0,0.13663259]
[1610361179195,0.08102608,35569.0,35568.0,0.00030651]
[1610361179396,0.08102608,35569.0,35557.0,0.0847]
[1610361179697,0.08102608,35569.0,35558.0,0.00030654]
[1610361180496,0.07602608,35569.0,35558.0,0.00030654]
[1610361181098,0.13632608,35574.0,35568.0,0.13632608]
[1610361181498,0.13632608,35574.0,35569.0,0.00030652]
[1610361182697,0.13632608,35574.0,35567.0,0.00030652]
[1610361182899,0.13632608,35574.0,35570.0,0.00030652]
[1610361183098,0.13632608,35574.0,35568.0,0.00030652]
[1610361183498,0.13632608,35574.0,35571.0,0.00030652]
[1610361183699,0.13632608,35574.0,35566.0,0.10267]
[1610361183898,0.13632608,35574.0,35572.0,0.00030651]
[1610361184300,0.13632608,35574.0,35567.0,0.00030651]
[1610361184500,0.13632608,35574.0,35573.0,0.00030651]
[1610361184703,0.13632608,35574.0,35568.0,0.00030656]
[1610361185102,0.73220349,35577.0,35566.0,0.10267]
[1610361185300,0.73220349,35577.0,35569.0,0.00030656]
[1610361185503,0.73282972,35578.0,35567.0,0.00030656]
[1610361185702,0.73282972,35578.0,35570.0,0.00030656]
[1610361185904,0.73271754,35577.0,35570.0,0.00030656]
[1610361186103,0.73271754,35577.0,35570.0,0.083]
[1610361186303,0.73361725,35580.0,35571.0,0.00030652]
[1610361186703,0.82163372,35586.0,35571.0,0.00030652]
[1610361186704,0.73425457,35581.0,35571.0,0.00030652]
[1610361186903,0.73425457,35581.0,35567.0,0.00030652]
[1610361187107,0.73425457,35581.0,35576.0,0.13632608]
[1610361187304,0.73679666,35582.0,35576.0,0.13632608]
[1610361187704,0.73679666,35582.0,35577.0,0.0003065]
[1610361188104,0.7381737,35585.0,35577.0,0.0003065]
[1610361188304,0.7381737,35585.0,35577.0,0.0844065]
[1610361188506,0.82673683,35590.0,35577.0,0.0844065]
[1610361188507,0.73906299,35586.0,35577.0,0.0844065]
[1610361188703,0.73906299,35586.0,35578.0,0.00030642]
[1610361188904,0.73976383,35589.0,35578.0,0.00030642]
[1610361189104,0.10462608,35579.0,35578.0,0.00030642]
[1610361189303,0.73987265,35590.0,35577.0,0.00030642]
[1610361189504,0.74065798,35591.0,35578.0,0.0003064]
[1610361189705,0.74065798,35591.0,35578.0,0.0835064]
[1610361189904,0.74108061,35592.0,35578.0,0.0832]
[1610361190306,0.01499388,35584.0,35579.0,0.00030636]
[1610361190505,0.00889388,35584.0,35579.0,0.00030636]
[1610361190706,0.44586042,35586.0,35579.0,0.00030636]
[1610361190904,0.33066042,35586.0,35579.0,0.00030636]
[1610361191108,0.48003642,35590.0,35585.0,0.13632608]
[1610361191305,4.52319756,35570.0,31737.0,0.0026]
[1610361191506,4.52319756,35570.0,35532.0,2.37121724]
[1610361191704,4.52319756,35570.0,35553.0,0.284]
[1610361191905,4.46699756,35570.0,35569.0,0.03443994]
[1610361192305,4.36099756,35570.0,35569.0,0.03443994]
[1610361192804,4.28369756,35570.0,35569.0,0.03443994]
[1610361193006,1.95829756,35570.0,35569.0,0.03443994]
[1610361193205,1.07929756,35570.0,35569.0,0.17076602]
[1610361193404,1.05149756,35570.0,35569.0,0.17076602]
[1610361193807,0.23629756,35570.0,35569.0,0.17076602]
[1610361194006,0.42267433,35595.0,35569.0,0.17076602]
[1610361194206,0.83346748,35605.0,35569.0,0.17076602]
[1610361194405,0.83346748,35605.0,35570.0,0.03443884]
[1610361194607,0.79192378,35606.0,35570.0,0.03443884]
[1610361194807,0.40965911,35604.0,35570.0,0.03443884]
[1610361195005,0.31725911,35604.0,35570.0,0.00030627]
[1610361195207,0.26305911,35604.0,35603.0,0.13632608]
[1610361195408,0.43482608,35614.0,35603.0,0.13632608]
[1610361195810,0.40970161,35613.0,35603.0,0.13461899]
[1610361196009,0.8445243,35614.0,35603.0,0.13461899]
[1610361196410,0.8445243,35614.0,35603.0,0.21901899]
[1610361196609,0.40968483,35613.0,35603.0,0.21901899]
[1610361197008,0.40968483,35613.0,35603.0,0.13461899]
[1610361197209,0.13632608,35604.0,35603.0,0.13461899]
[1610361197610,0.40968483,35613.0,35603.0,0.13461899]
[1610361197811,0.40478366,35604.0,35603.0,0.13461899]
[1610361198212,0.40969867,35613.0,35603.0,0.13461899]
[1610361199112,0.40969867,35613.0,35612.0,0.13632608]
[1610361199314,0.40967987,35614.0,35612.0,0.13632608]
[1610361199513,0.40967599,35613.0,35612.0,0.13632608]
[1610361199713,0.40967599,35613.0,35596.0,0.0835]
[1610361200114,0.40967733,35614.0,35596.0,0.0835]
[1610361200314,0.09068,35615.0,35597.0,0.00030627]
[1610361200513,0.2901,35618.0,35597.0,0.00030627]
[1610361200714,0.40967778,35614.0,35597.0,0.00030627]
[1610361201115,0.49315199,35617.0,35610.0,0.13632608]
[1610361201519,0.40963866,35616.0,35610.0,0.13632608]
[1610361202517,0.35403866,35616.0,35610.0,0.13632608]
[1610361202718,0.33902489,35615.0,35610.0,0.13632608]
[1610361202919,0.10182489,35615.0,35610.0,0.13632608]
[1610361203118,0.09068,35625.0,35614.0,0.13632608]
[1610361203318,1.04595012,35627.0,35614.0,0.23028608]
[1610361203519,0.61431046,35630.0,35614.0,0.23028608]
[1610361203919,0.13632608,35632.0,35614.0,0.23028608]
[1610361204320,0.10372608,35632.0,35614.0,0.23028608]
[1610361205020,0.9419139,35632.0,35614.0,0.23028608]
[1610361205220,0.13632608,35626.0,35625.0,0.13632608]
[1610361205822,0.13632608,35626.0,35625.0,0.13461989]
[1610361207826,0.13632608,35626.0,35614.0,0.09396]
[1610361208427,0.13632608,35626.0,35613.0,0.0837]
[1610361209329,0.13632608,35618.0,35617.0,0.13632608]
[1610361209529,0.10502608,35618.0,35617.0,0.13632608]
[1610361210041,0.10502608,35618.0,35552.0,1.5]
[1610361211130,0.10502608,35618.0,35551.0,0.13667]
[1610361211330,0.13632608,35600.0,35598.0,0.13632608]
[1610361211531,0.13632608,35600.0,35587.0,8.2147]
[1610361212333,0.21897608,35600.0,35587.0,8.2147]
[1610361212934,0.97429051,35600.0,35587.0,8.2147]
[1610361213333,0.13632608,35588.0,35587.0,8.2147]
[1610361215137,0.13632608,35588.0,35587.0,8.1127]
[1610361215338,0.59022608,35588.0,35566.0,0.01567]
[1610361215538,0.59022608,35588.0,35561.0,0.13632608]
[1610361215741,0.66182536,35587.0,35561.0,0.13632608]
[1610361215941,1.41260347,35587.0,35561.0,0.13632608]
[1610361216140,0.66070275,35583.0,35561.0,0.13632608]
[1610361216341,0.66000934,35581.0,35561.0,0.13632608]
[1610361216741,0.65982805,35580.0,35561.0,0.13632608]
[1610361217142,0.66000173,35579.0,35562.0,0.0841]
[1610361217341,0.13632608,35563.0,35561.0,0.13632608]
[1610361218042,0.65968582,35577.0,35561.0,0.13632608]
[1610361218243,0.65968582,35577.0,35562.0,0.0832]
[1610361218444,0.65968582,35577.0,35561.0,0.13632608]
[1610361218644,0.10978,35582.0,35561.0,0.13632608]
[1610361218645,0.66072147,35579.0,35561.0,0.13632608]
[1610361219044,0.66096835,35578.0,35561.0,0.13632608]
[1610361219244,0.66096835,35578.0,35568.0,0.13632608]
[1610361219844,0.86057938,35582.0,35568.0,0.13461736]
[1610361219845,0.66061453,35576.0,35568.0,0.13461736]
[1610361220246,3.8796,35575.0,35568.0,0.13461736]
[1610361220449,4.54049979,35575.0,35568.0,0.13461736]
[1610361220847,0.66091825,35574.0,35568.0,0.13461736]
[1610361221247,0.13632608,35569.0,35568.0,0.13461736]
[1610361221748,0.13632608,35569.0,35560.0,0.11299]
[1610361223351,4.54027822,35575.0,35568.0,0.13632608]
[1610361223751,4.54027822,35575.0,35551.0,0.13667]
[1610361224151,0.6597099,35573.0,35551.0,0.13667]
[1610361224951,0.65833396,35571.0,35551.0,0.13667]
[1610361225454,0.65833396,35571.0,35558.0,0.13632608]
[1610361226053,0.65833396,35571.0,35551.0,0.13667]
[1610361226458,0.64907242,35569.0,35551.0,0.13667]
[1610361227055,0.64675381,35565.0,35551.0,0.13667]
[1610361227252,0.75414381,35565.0,35551.0,0.13667]
[1610361227452,0.13632608,35552.0,35551.0,0.13667]
[1610361230159,0.13632608,35552.0,35551.0,0.13496034]
[1610361230354,0.78662608,35552.0,35526.0,0.0834]
[1610361230953,0.78662608,35552.0,35523.0,4.1184]
[1610361231354,0.6503,35552.0,35532.0,0.13632608]
[1610361232154,1.0,35550.0,35532.0,0.13632608]
[1610361233355,1.0,35550.0,35549.0,0.13632608]
[1610361233555,0.9884,35550.0,35549.0,0.13632608]
[1610361233755,0.6503,35552.0,35549.0,0.13632608]
[1610361233956,0.0746,35557.0,35549.0,0.13632608]
[1610361234155,0.52571538,35562.0,35549.0,0.13632608]
[1610361234356,0.52639992,35564.0,35549.0,0.13632608]
[1610361234755,0.63406295,35565.0,35549.0,0.13632608]
[1610361235156,0.10739,35565.0,35549.0,0.13632608]
[1610361235358,0.10739,35565.0,35564.0,0.13632608]
[1610361235758,0.52876315,35568.0,35564.0,0.13632608]
[1610361235960,0.52881137,35569.0,35556.0,0.06844]
[1610361236361,0.52906154,35570.0,35556.0,0.06844]
[1610361236560,0.10256174,35568.0,35556.0,0.06844]
[1610361236762,0.52838578,35567.0,35556.0,0.06844]
[1610361237161,0.52788135,35566.0,35556.0,0.06844]
[1610361237361,0.13632608,35557.0,35556.0,0.06844]
[1610361237562,0.13632608,35557.0,35555.0,0.13632608]
[1610361237760,0.13632608,35557.0,35538.0,0.10337]
[1610361238763,0.13632608,35557.0,35509.0,0.0835]
[1610361238963,0.13632608,35557.0,35528.0,0.0855]
[1610361239163,0.13632608,35557.0,35531.0,0.00030964]
[1610361239363,0.52551551,35563.0,35531.0,0.10115]
[1610361239564,0.52574841,35562.0,35531.0,0.10115]
[1610361239763,1.15848785,35560.0,35531.0,0.10115]
[1610361240766,0.52537667,35557.0,35531.0,0.10115]
[1610361240964,0.59510667,35557.0,35531.0,0.10115]
[1610361241167,0.52423722,35556.0,35531.0,0.10115]
[1610361241366,0.5233564,35554.0,35538.0,0.13632608]
[1610361241766,0.52351799,35555.0,35538.0,0.13461617]
[1610361241966,0.10259574,35556.0,35538.0,0.13461617]
[1610361241967,0.52357465,35556.0,35538.0,0.13461617]
[1610361242166,0.52357465,35556.0,35547.0,1.0]
[1610361243168,0.06973,35557.0,35547.0,1.0]
[1610361243368,0.06973,35557.0,35556.0,0.13632608]
[1610361243767,0.07007188,35557.0,35547.0,1.0]
[1610361244169,0.06973,35557.0,35532.0,0.08351]
[1610361244567,0.06973,35557.0,35533.0,0.00030965]
[1610361244769,0.06973,35557.0,35534.0,0.0833]
[1610361244968,0.6326,35560.0,35534.0,0.0833]
[1610361245170,0.6326,35560.0,35535.0,0.00030965]
[1610361245369,0.6326,35560.0,35559.0,0.13632608]
[1610361245767,0.6326,35560.0,35549.0,0.09317]
[1610361247372,0.6326,35560.0,35559.0,0.13632608]
[1610361248175,0.6326,35560.0,35559.0,1.13632608]
[1610361249174,0.13632608,35564.0,35559.0,1.13632608]
[1610361249376,0.13632608,35560.0,35559.0,1.13632608]
[1610361249575,0.09262608,35560.0,35559.0,1.13632608]
[1610361250174,0.09262608,35560.0,35559.0,0.13632608]
[1610361250377,0.09262608,35560.0,35549.0,0.09317]
[1610361250584,0.2755,35572.0,35549.0,0.09317]
[1610361250780,0.2755,35572.0,35541.0,3.8683]
[1610361250980,0.00034182,35571.0,35549.0,0.08565]
[1610361251378,0.00034182,35571.0,35568.0,0.13632608]
[1610361251977,0.00034182,35571.0,35557.0,0.06882]
[1610361252379,0.00034182,35571.0,35557.0,0.06711071]
[1610361253378,0.00034182,35571.0,35560.0,0.13632608]
[1610361254778,0.00034182,35571.0,35549.0,0.08565]
[1610361255181,0.00034182,35571.0,35550.0,0.0003096]
[1610361255383,0.00034182,35571.0,35570.0,0.13632608]
[1610361255583,0.0003418,35572.0,35570.0,0.13632608]
[1610361256183,0.0003418,35572.0,35571.0,6.0]
[1610361256786,0.2028418,35573.0,35571.0,6.0]
[1610361257184,4.5558,35574.0,35571.0,6.0]
[1610361257383,0.10978,35582.0,35571.0,6.0]
[1610361257585,0.64499636,35589.0,35571.0,6.0]
[1610361257784,0.00034165,35581.0,35572.0,0.00030948]
[1610361257984,0.00034163,35588.0,35571.0,6.0]
[1610361258185,0.00034163,35588.0,35570.0,0.13632608]
[1610361258186,0.00034163,35588.0,35580.0,6.0]
[1610361258385,0.736716,35595.0,35580.0,6.0]
[1610361258584,0.00034161,35587.0,35580.0,6.0]
[1610361258785,0.00034161,35594.0,35580.0,6.0]
[1610361259184,0.09042,35595.0,35580.0,6.0]
[1610361259385,0.13632608,35592.0,35580.0,6.0]
[1610361259786,0.00034159,35591.0,35580.0,6.0]
[1610361260186,0.00034159,35591.0,35589.0,5.0]
[1610361260686,0.13632608,35592.0,35589.0,5.0]
[1610361261186,0.00034157,35591.0,35589.0,5.0]
[1610361261386,0.00034157,35591.0,35590.0,0.13632608]
[1610361261988,0.13632608,35592.0,35590.0,0.13632608]
[1610361262188,0.00034156,35591.0,35590.0,1.05092206]
[1610361262588,0.13632608,35592.0,35590.0,1.05092206]
[1610361262789,0.13632608,35592.0,35590.0,1.04921401]
[1610361264193,0.13632608,35592.0,35583.0,0.08557]
[1610361264594,0.11272608,35592.0,35583.0,0.08557]
[1610361265193,0.02892608,35592.0,35583.0,0.08557]
[1610361265395,0.6499649,35600.0,35591.0,0.13632608]
[1610361265594,0.73958738,35603.0,35591.0,0.13632608]
[1610361265995,0.11076,35604.0,35591.0,0.13632608]
[1610361266194,0.74033062,35606.0,35602.0,6.0]
[1610361266396,0.72427056,35610.0,35602.0,6.0]
[1610361266797,0.51806404,35614.0,35602.0,6.0]
[1610361267197,0.41946404,35614.0,35602.0,6.0]
[1610361267395,0.41946404,35614.0,35613.0,0.13632608]
[1610361267598,0.21846404,35614.0,35613.0,0.13632608]
[1610361267796,4.1707,35615.0,35613.0,0.13632608]
[1610361267998,0.83954239,35625.0,35613.0,0.13632608]
[1610361268197,0.84196575,35631.0,35613.0,0.13632608]
[1610361268598,0.84334879,35633.0,35613.0,0.22072608]
[1610361268998,0.99804519,35635.0,35613.0,0.22072608]
[1610361269398,0.84561646,35640.0,35613.0,0.22072608]
[1610361269596,0.59481646,35640.0,35634.0,0.13632608]
[1610361269798,0.41892608,35645.0,35634.0,0.13632608]
[1610361270198,0.41892608,35645.0,35644.0,1.0]
[1610361270600,0.4192673,35645.0,35644.0,1.0]
[1610361270805,0.4192673,35645.0,35644.0,0.57345465]
[1610361271006,0.41892608,35645.0,35617.0,0.11289]
[1610361271400,0.38153,35645.0,35633.0,0.13632608]
[1610361272000,0.38153,35645.0,35617.0,0.11289]
[1610361272902,0.38153,35645.0,35618.0,0.0831]
[1610361273503,0.38153,35645.0,35634.0,0.13632608]
[1610361273705,0.38153,35645.0,35629.0,0.0851]
[1610361274103,0.38153,35645.0,35617.0,0.11289]
[1610361275104,0.38153,35645.0,35553.0,1.5]
[1610361275504,0.38153,35645.0,35615.0,0.13632608]
[1610361275706,1.04596256,35644.0,35615.0,0.13632608]
[1610361276105,1.04639298,35643.0,35615.0,0.13632608]
[1610361276308,1.04639298,35643.0,35554.0,1.5]
[1610361276505,1.42773213,35645.0,35554.0,1.5]
[1610361276705,1.42773213,35645.0,35555.0,1.5]
[1610361277205,0.38153,35645.0,35555.0,1.5]
[1610361277606,0.38153,35645.0,35529.0,2.8403961]
[1610361277607,0.38153,35645.0,35556.0,1.5]
[1610361278307,0.45153,35645.0,35556.0,1.5]
[1610361278707,1.0444391,35644.0,35557.0,1.5]
[1610361278909,1.04299842,35642.0,35557.0,1.5]
[1610361279508,1.04299842,35642.0,35615.0,0.13632608]
[1610361279908,0.83536359,35638.0,35615.0,0.13632608]
[1610361280310,0.83627793,35641.0,35615.0,0.13632608]
[1610361280608,0.83605341,35642.0,35615.0,0.13632608]
[1610361281009,1.2881016,35645.0,35615.0,0.13632608]
[1610361281411,0.45153,35645.0,35615.0,0.13632608]
[1610361281609,0.45153,35645.0,35627.0,0.13632608]
[1610361281809,0.45153,35645.0,35609.0,0.10943]
[1610361281810,1.28752773,35645.0,35609.0,0.10943]
[1610361283211,0.00034131,35644.0,35609.0,0.10943]
[1610361283713,0.00034131,35644.0,35616.0,0.13632608]
[1610361283915,0.83486017,35644.0,35616.0,0.13632608]
[1610361284113,0.83486017,35644.0,35609.0,0.10943]
[1610361284314,0.83423786,35643.0,35609.0,0.10943]
[1610361284715,0.00034131,35643.0,35609.0,0.10943]
[1610361284913,0.00034131,35642.0,35616.0,0.0283]
[1610361285114,0.45153,35645.0,35616.0,0.0283]
[1610361285515,0.0003413,35644.0,35616.0,0.0283]
[1610361285714,0.13632608,35638.0,35620.0,0.13632608]
[1610361286814,0.45153,35645.0,35620.0,0.13632608]
[1610361287214,0.45153,35645.0,35621.0,0.0836]
[1610361287414,0.16893,35645.0,35625.0,3.8397]
[1610361287615,0.30525608,35645.0,35642.0,0.13632608]
[1610361287816,0.18515608,35645.0,35642.0,0.13632608]
[1610361288015,0.5685,35657.0,35642.0,0.13632608]
[1610361288214,0.5685,35657.0,35642.0,0.1346201]
[1610361288416,0.00034118,35656.0,35642.0,0.1346201]
[1610361288614,0.07681118,35656.0,35642.0,0.1346201]
[1610361289015,0.00034115,35655.0,35642.0,0.1346201]
[1610361289718,0.00034115,35655.0,35654.0,0.13632608]
[1610361289918,0.00034115,35655.0,35636.0,0.10859]
[1610361290319,0.07647,35656.0,35636.0,0.19159]
[1610361290519,0.04587,35656.0,35636.0,0.19159]
[1610361291618,0.13632608,35656.0,35655.0,0.13632608]
[1610361292321,0.13632608,35656.0,35640.0,0.0833]
[1610361292720,0.02156717,35656.0,35640.0,0.0833]
[1610361293520,0.02156717,35656.0,35636.0,0.19159]
[1610361293721,0.02156717,35656.0,35655.0,0.13632608]
[1610361295326,0.02190826,35656.0,35655.0,0.13632608]
[1610361296626,0.02190826,35656.0,35636.0,0.10859]
[1610361296828,0.02190826,35656.0,35614.0,0.083]
[1610361297226,0.00034109,35655.0,35614.0,0.083]
[1610361297627,0.00034109,35655.0,35559.0,0.0224]
[1610361297828,0.13632608,35620.0,35616.0,0.16462608]
[1610361298027,0.11341,35636.0,35616.0,0.16462608]
[1610361298427,0.00034123,35635.0,35616.0,0.16462608]
[1610361298628,0.00034123,35635.0,35617.0,0.0831]
[1610361298828,0.00034123,35635.0,35617.0,0.19016]
[1610361299228,0.00034123,35635.0,35617.0,0.10706]
[1610361299830,0.13632608,35641.0,35634.0,0.13632608]
[1610361300431,0.00034119,35640.0,35634.0,0.13632608]
[1610361300832,0.00034119,35640.0,35617.0,0.10706]
[1610361301831,0.13632608,35633.0,35617.0,0.10706]
[1610361302034,0.24999608,35633.0,35616.0,0.0283]
[1610361302331,0.00034128,35632.0,35616.0,0.0283]
[1610361303531,0.00034128,35632.0,35616.0,0.0265933]
[1610361303731,0.13632608,35624.0,35616.0,0.16291938]
[1610361304336,0.00034137,35623.0,35616.0,0.16291938]
[1610361304735,0.00034137,35623.0,35616.0,0.0265933]
[1610361304933,0.13632608,35624.0,35616.0,0.0265933]
[1610361305335,0.00034139,35623.0,35616.0,0.0265933]
[1610361305542,3.4938,35618.0,35616.0,0.0265933]
[1610361305736,0.13632608,35617.0,35616.0,0.0265933]
[1610361305935,0.13632608,35617.0,35600.0,0.10106]
[1610361306135,0.13666751,35617.0,35600.0,0.10106]
[1610361306346,0.00034143,35616.0,35600.0,0.10106]
[1610361307555,0.09093143,35616.0,35593.0,4.3739]
[1610361307753,0.13632608,35594.0,35593.0,4.3739]
[1610361309354,0.13632608,35594.0,35593.0,4.2929]
[1610361309547,0.13632608,35594.0,35514.0,0.0807]
[1610361309748,0.0898,35601.0,35572.0,0.13632608]
[1610361309952,0.2789,35600.0,35572.0,0.13632608]
[1610361310148,0.2789,35600.0,35571.0,0.10791]
[1610361310360,0.27924169,35600.0,35571.0,0.10791]
[1610361310552,0.83050708,35599.0,35571.0,0.10791]
[1610361310751,0.83016539,35599.0,35571.0,0.10791]
[1610361310943,0.82926945,35596.0,35540.0,0.0833]
[1610361311343,0.82794437,35592.0,35540.0,0.0833]
[1610361311545,0.94073437,35592.0,35540.0,0.0833]
[1610361311743,0.13632608,35565.0,35563.0,0.13632608]
[1610361311943,0.94073437,35592.0,35563.0,0.13632608]
[1610361312145,0.11279,35592.0,35563.0,0.21816608]
[1610361313845,0.13632608,35583.0,35579.0,0.13632608]
[1610361314244,0.13632608,35583.0,35563.0,0.08184]
[1610361314445,0.13632608,35583.0,35563.0,4.51184]
[1610361315846,0.13632608,35577.0,35575.0,0.13632608]
[1610361316245,0.07373,35584.0,35575.0,0.13632608]
[1610361316846,0.07373,35584.0,35575.0,0.13461711]
[1610361317445,0.07373,35584.0,35563.0,0.08184]
[1610361317645,0.07373,35584.0,35557.0,0.085]
[1610361317850,0.07373,35584.0,35570.0,0.13632608]
[1610361318045,0.07373,35584.0,35557.0,0.085]
[1610361319747,0.07373,35584.0,35577.0,0.13632608]
[1610361319947,0.11279,35592.0,35577.0,0.13632608]
[1610361320148,0.82823542,35595.0,35577.0,0.13632608]
[1610361320648,0.82822325,35596.0,35577.0,0.13632608]
[1610361321450,0.82807048,35597.0,35577.0,0.13632608]
[1610361321949,0.82807048,35597.0,35557.0,0.085]
[1610361321950,0.82807048,35597.0,35581.0,0.13632608]
[1610361322151,0.82784251,35598.0,35581.0,0.13632608]
[1610361322653,0.82794193,35599.0,35581.0,0.13632608]
[1610361323055,0.2789,35600.0,35581.0,0.13632608]
[1610361323454,0.82803301,35599.0,35572.0,0.08102]
[1610361323854,0.13632608,35573.0,35572.0,0.08102]
[1610361325454,0.13632608,35573.0,35555.0,0.10636]
[1610361325853,0.13632608,35556.0,35548.0,0.13632608]
[1610361327355,0.11371,35589.0,35548.0,0.13632608]
[1610361327755,0.11371,35589.0,35548.0,0.08505]
[1610361327956,0.13632608,35549.0,35548.0,0.08505]
[1610361328757,0.13632608,35549.0,35542.0,0.13632608]
[1610361329958,0.07439,35562.0,35542.0,0.13632608]
[1610361331961,0.07439,35562.0,35546.0,0.13632608]
[1610361333565,0.00034189,35561.0,35546.0,0.13632608]
[1610361333762,4.3294,35555.0,35546.0,0.13632608]
[1610361333963,0.13632608,35547.0,35546.0,0.13632608]
[1610361335064,0.13632608,35547.0,35540.0,0.09708]
[1610361335265,0.13632608,35547.0,35527.0,3.1861]
[1610361335867,4.3294,35555.0,35527.0,3.1861]
[1610361335868,0.09887,35549.0,35527.0,3.1861]
[1610361336270,0.13632608,35528.0,35527.0,3.1861]
[1610361337068,0.0795,35538.0,35527.0,3.1861]
[1610361337469,0.09887,35549.0,35527.0,3.28437]
[1610361337668,0.00034201,35537.0,35527.0,3.28437]
[1610361337867,0.00034201,35548.0,35527.0,3.28437]
[1610361338067,0.09887,35549.0,35527.0,3.28437]
[1610361338268,0.000342,35547.0,35535.0,0.13632608]
[1610361338670,0.000342,35548.0,35535.0,0.13632608]
[1610361338867,0.09887,35549.0,35535.0,0.13632608]
[1610361339068,0.000342,35547.0,35535.0,0.13632608]
[1610361339469,0.000342,35548.0,35535.0,0.13632608]
[1610361339669,0.09887,35549.0,35535.0,0.13632608]
[1610361339869,0.00034199,35547.0,35535.0,0.13632608]
[1610361340169,0.00034199,35548.0,35535.0,0.13632608]
[1610361340370,0.09887,35549.0,35539.0,0.13632608]